fUSD/lending_fUSD_20240420
["ID","MTS","AMOUNT","RATE_DAILY","PERIOD"]
[323027772,1713603050750,-500.0,0.00015342,2]
[323027773,1713603050759,-448.97,0.00015342,2]
[323027774,1713603050768,-151.0,0.00015342,2]
[323027775,1713603050778,-500.0,0.00015342,2]
[323027776,1713603050787,-262.793727,0.00015342,2]
[323027777,1713603050799,-500.0,0.00015342,2]
[323027778,1713603050808,-500.0,0.00015342,2]
[323027779,1713603050818,-1340.38,0.00015342,2]
[323027780,1713603050828,-877.27,0.00015342,2]
[323027781,1713603050837,-1135.97,0.00015342,2]
[323027782,1713603050846,-500.0,0.00015342,2]
[323027783,1713603050855,-1186.32,0.00015342,2]
[323027784,1713603050865,-597.51,0.00015342,2]
[323027785,1713603050874,-992.23,0.00015342,2]
[323027786,1713603050883,-2212.57,0.00015342,2]
[323027787,1713603050892,-151.0,0.00015342,2]
[323027788,1713603050902,-903.18,0.00015342,2]
[323027789,1713603050911,-151.0,0.00015342,2]
[323027790,1713603050920,-1382.52,0.00015342,2]
[323027791,1713603050929,-151.0,0.00015342,2]
[323027792,1713603050938,-287.049334,0.00015342,2]
[323027793,1713603050947,-514.73,0.00015342,2]
[323027794,1713603050956,-505.81,0.00015342,2]
[323027795,1713603050966,-1238.6,0.00015342,2]
[323027796,1713603050975,-2160.78,0.00015342,2]
[323027797,1713603050985,-1668.06,0.00015342,2]
[323027798,1713603050995,-151.0,0.00015342,2]
[323027799,1713603051005,-151.0,0.00015342,2]
[323027800,1713603051014,-500.0,0.00015342,2]
[323027801,1713603051023,-500.0,0.00015342,2]
[323027802,1713603051032,-746.66,0.00015342,2]
[323027803,1713603051042,-151.0,0.00015342,2]
[323027804,1713603051051,-1816.36,0.00015342,2]
[323027805,1713603051061,-151.0,0.00015342,2]
[323027806,1713603051070,-500.0,0.00015342,2]
[323027807,1713603051079,-500.0,0.00015342,2]
[323027808,1713603051089,-151.0,0.00015342,2]
[323027809,1713603051097,-151.0,0.00015342,2]
[323027810,1713603051107,-1369.96,0.00015342,2]
[323027811,1713603051116,-500.0,0.00015342,2]
[323027812,1713603051126,-151.0,0.00015342,2]
[323027813,1713603051135,-151.0,0.00015342,2]
[323027814,1713603051145,-500.0,0.00015342,2]
[323027815,1713603051154,-1093.78,0.00015342,2]
[323027816,1713603051164,-500.0,0.00015342,2]
[323027817,1713603051173,-1467.02,0.00015342,2]
[323027818,1713603051191,-572.46,0.00015342,2]
[323027819,1713603051203,-1687.02,0.00015342,2]
[323027820,1713603051212,-623.15,0.00015342,2]
[323027821,1713603051221,-500.0,0.00015342,2]
[323027822,1713603051231,-500.0,0.00015342,2]
[323027823,1713603051240,-500.0,0.00015342,2]
[323027824,1713603051249,-547.3,0.00015342,2]
[323027825,1713603051258,-579.83,0.00015342,2]
[323027826,1713603051268,-608.87,0.00015342,2]
[323027827,1713603051277,-500.0,0.00015342,2]
[323027828,1713603051286,-151.0,0.00015342,2]
[323027829,1713603051296,-151.0,0.00015342,2]
[323027830,1713603051306,-500.0,0.00015342,2]
[323027831,1713603051315,-524.7,0.00015342,2]
[323027832,1713603051324,-500.0,0.00015342,2]
[323027833,1713603051333,-500.0,0.00015342,2]
[323027834,1713603051343,-500.0,0.00015342,2]
[323027835,1713603051352,-1271.21,0.00015342,2]
[323027836,1713603051362,-500.0,0.00015342,2]
[323027837,1713603051371,-5228.49,0.00015342,2]
[323027838,1713603051380,-591.33,0.00015342,2]
[323027839,1713603051389,-151.0,0.00015342,2]
[323027840,1713603051398,-603.21,0.00015342,2]
[323027841,1713603051408,-151.0,0.00015342,2]
[323027842,1713603051417,-151.0,0.00015342,2]
[323027843,1713603051426,-500.0,0.00015342,2]
[323027844,1713603051436,-500.0,0.00015342,2]
[323027845,1713603051445,-970.48,0.00015342,2]
[323027846,1713603051454,-500.0,0.00015342,2]
[323027847,1713603051464,-836.26,0.00015342,2]
[323027848,1713603051474,-500.0,0.00015342,2]
[323027849,1713603051483,-19004.64,0.00015342,2]
[323027850,1713603051492,-500.0,0.00015342,2]
[323027851,1713603051502,-151.0,0.00015342,2]
[323027852,1713603051512,-151.0,0.00015342,2]
[323027853,1713603051522,-151.0,0.00015342,2]
[323027854,1713603051532,-151.0,0.00015342,2]
[323027855,1713603051543,-151.0,0.00015342,2]
[323027856,1713603051554,-151.0,0.00015342,2]
[323027857,1713603051564,-843.06,0.00015342,2]
[323027858,1713603051575,-500.0,0.00015342,2]
[323027859,1713603051586,-500.0,0.00015342,2]
[323027860,1713603051596,-500.0,0.00015342,2]
[323027861,1713603051607,-151.0,0.00015342,2]
[323027862,1713603051618,-500.0,0.00015342,2]
[323027863,1713603051627,-151.0,0.00015342,2]
[323027864,1713603051637,-795.48,0.00015342,2]
[323027865,1713603051648,-500.0,0.00015342,2]
[323027866,1713603051658,-500.0,0.00015342,2]
[323027867,1713603051667,-526.49,0.00015342,2]
[323027868,1713603051677,-500.0,0.00015342,2]
[323027869,1713603051687,-966.71,0.00015342,2]
[323027870,1713603051698,-500.0,0.00015342,2]
[323027871,1713603051708,-151.0,0.00015342,2]
[323027872,1713603051717,-500.0,0.00015342,2]
[323027873,1713603051727,-751.77,0.00015342,2]
[323027874,1713603051737,-500.0,0.00015342,2]
[323027875,1713603051747,-1717.29,0.00015342,2]
[323027876,1713603051757,-500.0,0.00015342,2]
[323027877,1713603051766,-500.0,0.00015342,2]
[323027878,1713603051775,-529.25,0.00015342,2]
[323027879,1713603051785,-500.0,0.00015342,2]
[323027880,1713603051796,-500.0,0.00015342,2]
[323027881,1713603051806,-500.0,0.00015342,2]
[323027882,1713603051816,-500.0,0.00015342,2]
[323027883,1713603051826,-500.0,0.00015342,2]
[323027884,1713603051836,-15276.58,0.00015342,2]
[323027885,1713603051847,-500.0,0.00015342,2]
[323027886,1713603051857,-1716.47,0.00015342,2]
[323027887,1713603051868,-500.0,0.00015342,2]
[323027888,1713603051879,-260.5122861,0.00015342,2]
[323027889,1713603051889,-500.0,0.00015342,2]
[323027890,1713603051899,-500.0,0.00015342,2]
[323027891,1713603051908,-500.0,0.00015342,2]
[323027892,1713603051917,-500.0,0.00015342,2]
[323027893,1713603051927,-500.0,0.00015342,2]
[323027894,1713603051937,-2415.01,0.00015342,2]
[323027895,1713603051947,-1619.96,0.00015342,2]
[323027896,1713603051957,-500.0,0.00015342,2]
[323027897,1713603051967,-837.93,0.00015342,2]
[323027898,1713603051976,-500.0,0.00015342,2]
[323027899,1713603051985,-500.0,0.00015342,2]
[323027900,1713603051995,-21501.12,0.00015342,2]
[323027901,1713603052004,-1383.89,0.00015342,2]
[323027902,1713603052014,-2176.47,0.00015342,2]
[323027903,1713603052024,-500.0,0.00015342,2]
[323027904,1713603052034,-500.0,0.00015342,2]
[323027905,1713603052045,-1627.98,0.00015342,2]
[323027906,1713603052054,-8759.07,0.00015342,2]
[323027907,1713603052064,-500.0,0.00015342,2]
[323027908,1713603052073,-303.908244,0.00015342,2]
[323027909,1713603052083,-151.0,0.00015342,2]
[323027910,1713603052092,-303.908244,0.00015342,2]
[323027911,1713603052102,-151.0,0.00015342,2]
[323027912,1713603052111,-151.0,0.00015342,2]
[323027913,1713603052121,-500.0,0.00015342,2]
[323027914,1713603052131,-151.0,0.00015342,2]
[323027915,1713603052140,-500.0,0.00015342,2]
[323027916,1713603052149,-500.0,0.00015342,2]
[323027917,1713603052158,-500.0,0.00015342,2]
[323027918,1713603052167,-1838.33,0.00015342,2]
[323027919,1713603052176,-500.0,0.00015342,2]
[323027920,1713603052185,-2003.71,0.00015342,2]
[323027921,1713603052194,-2301.33,0.00015342,2]
[323027922,1713603052204,-303.908244,0.00015342,2]
[323027923,1713603052213,-303.908244,0.00015342,2]
[323027924,1713603052222,-500.0,0.00015342,2]
[323027925,1713603052231,-2371.31,0.00015342,2]
[323027926,1713603052241,-500.0,0.00015342,2]
[323027927,1713603052250,-500.0,0.00015342,2]
[323027928,1713603052258,-958.42,0.00015342,2]
[323027929,1713603052267,-526.74,0.00015342,2]
[323027930,1713603052277,-4704.64,0.00015342,2]
[323027931,1713603052286,-702.38,0.00015342,2]
[323027932,1713603052295,-719.39,0.00015342,2]
[323027933,1713603052304,-2323.83,0.00015342,2]
[323027934,1713603052313,-635.01,0.00015342,2]
[323027935,1713603052322,-805.0,0.00015342,2]
[323027936,1713603052331,-1313.93,0.00015342,2]
[323027937,1713603052340,-500.0,0.00015342,2]
[323027938,1713603052349,-939.83,0.00015342,2]
[323027939,1713603052358,-500.0,0.00015342,2]
[323027940,1713603052367,-500.0,0.00015342,2]
[323027941,1713603052376,-500.0,0.00015342,2]
[323027942,1713603052385,-805.34,0.00015342,2]
[323027943,1713603052393,-223.30498,0.00015342,2]
[323027944,1713603052402,-223.30498,0.00015342,2]
[323027945,1713603052412,-595.82,0.00015342,2]
[323027946,1713603052421,-223.30498,0.00015342,2]
[323027947,1713603052430,-223.30498,0.00015342,2]
[323027948,1713603052439,-17610.62,0.00015342,2]
[323027949,1713603052448,-14404.44,0.00015342,2]
[323027950,1713603052458,-500.0,0.00015342,2]
[323027951,1713603052467,-500.0,0.00015342,2]
[323027952,1713603052476,-556.7,0.00015342,2]
[323027953,1713603052486,-1161.15,0.00015342,2]
[323027954,1713603052495,-500.0,0.00015342,2]
[323027955,1713603052504,-525.38632097,0.00015342,2]
[323027956,1713603052513,-500.0,0.00015342,2]
[323027957,1713603052522,-500.0,0.00015342,2]
[323027958,1713603052532,-1488.04,0.00015342,2]
[323027959,1713603052544,-957.16,0.00015342,2]
[323027960,1713603052553,-519.09,0.00015342,2]
[323027961,1713603052564,-1066.64,0.00015342,2]
[323027962,1713603052574,-500.0,0.00015342,2]
[323027963,1713603052583,-2579.95,0.00015342,2]
[323027964,1713603052592,-500.0,0.00015342,2]
[323027965,1713603052602,-500.0,0.00015342,2]
[323027966,1713603052612,-500.0,0.00015342,2]
[323027967,1713603052623,-2101.98,0.00015342,2]
[323027968,1713603052633,-1645.83,0.00015342,2]
[323027969,1713603052644,-500.0,0.00015342,2]
[323027970,1713603052654,-674.74,0.00015342,2]
[323027971,1713603052665,-500.0,0.00015342,2]
[323027972,1713603052674,-500.0,0.00015342,2]
[323027973,1713603052683,-1251.61,0.00015342,2]
[323027974,1713603052694,-569.44,0.00015342,2]
[323027975,1713603052845,-151.0,0.00015342,2]
[323027976,1713603052865,-500.0,0.00015342,2]
[323027977,1713603052875,-151.0,0.00015342,2]
[323027978,1713603052884,-500.0,0.00015342,2]
[323027979,1713603052893,-1215.63,0.00015342,2]
[323027980,1713603052903,-500.0,0.00015342,2]
[323027981,1713603052912,-686.63,0.00015342,2]
[323027982,1713603052923,-774.37,0.00015342,2]
[323027983,1713603052932,-500.0,0.00015342,2]
[323027984,1713603052942,-500.0,0.00015342,2]
[323027985,1713603052951,-1872.67,0.00015342,2]
[323027986,1713603052961,-500.0,0.00015342,2]
[323027987,1713603052970,-500.0,0.00015342,2]
[323027988,1713603052979,-1738.96,0.00015342,2]
[323027989,1713603052989,-1234.92,0.00015342,2]
[323027990,1713603052998,-500.0,0.00015342,2]
[323027991,1713603053008,-1103.38,0.00015342,2]
[323027992,1713603053017,-500.0,0.00015342,2]
[323027993,1713603053027,-500.0,0.00015342,2]
[323027994,1713603053036,-500.0,0.00015342,2]
[323027995,1713603053049,-540.91,0.00015342,2]
[323027996,1713603053059,-150.0,0.00015342,2]
[323027997,1713603053069,-151.0,0.00015342,2]
[323027998,1713603053078,-4454.84,0.00015342,2]
[323027999,1713603053088,-1917.37,0.00015342,2]
[323028000,1713603053098,-500.0,0.00015342,2]
[323028001,1713603053107,-798.54,0.00015342,2]
[323028002,1713603053116,-151.0,0.00015342,2]
[323028003,1713603053126,-500.0,0.00015342,2]
[323028004,1713603053137,-674.6,0.00015342,2]
[323028005,1713603053146,-500.0,0.00015342,2]
[323028006,1713603053156,-500.0,0.00015342,2]
[323028007,1713603053165,-8079.94,0.00015342,2]
[323028008,1713603053175,-3823.01,0.00015342,2]
[323028009,1713603053184,-1011.8,0.00015342,2]
[323028010,1713603053194,-500.0,0.00015342,2]
[323028011,1713603053204,-649.35,0.00015342,2]
[323028012,1713603053213,-878.26,0.00015342,2]
[323028013,1713603053223,-1687.04,0.00015342,2]
[323028014,1713603053233,-1038.56,0.00015342,2]
[323028015,1713603053243,-500.0,0.00015342,2]
[323028016,1713603053252,-2718.9,0.00015342,2]
[323028017,1713603053261,-500.0,0.00015342,2]
[323028018,1713603053271,-500.0,0.00015342,2]
[323028019,1713603053280,-806.64,0.00015342,2]
[323028020,1713603053290,-500.0,0.00015342,2]
[323028021,1713603053300,-500.0,0.00015342,2]
[323028022,1713603053312,-784.16,0.00015342,2]
[323028023,1713603053321,-500.0,0.00015342,2]
[323028024,1713603053331,-500.0,0.00015342,2]
[323028025,1713603053341,-500.0,0.00015342,2]
[323028026,1713603053350,-500.0,0.00015342,2]
[323028027,1713603053361,-2338.74,0.00015342,2]
[323028028,1713603053370,-500.0,0.00015342,2]
[323028029,1713603053379,-770.49,0.00015342,2]
[323028030,1713603053389,-500.0,0.00015342,2]
[323028031,1713603053398,-1039.74,0.00015342,2]
[323028032,1713603053407,-500.0,0.00015342,2]
[323028033,1713603053417,-500.0,0.00015342,2]
[323028034,1713603053426,-994.14,0.00015342,2]
[323028035,1713603053436,-500.0,0.00015342,2]
[323028036,1713603053446,-2012.69,0.00015342,2]
[323028037,1713603053456,-1532.32,0.00015342,2]
[323028038,1713603053465,-717.94,0.00015342,2]
[323028039,1713603053475,-2688.18,0.00015342,2]
[323028040,1713603053484,-1650.75,0.00015342,2]
[323028041,1713603053494,-500.0,0.00015342,2]
[323028042,1713603053503,-3451.31,0.00015342,2]
[323028043,1713603053514,-500.0,0.00015342,2]
[323028044,1713603053523,-500.0,0.00015342,2]
[323028045,1713603053533,-1277.947325,0.00015342,2]
[323028046,1713603053543,-1096.49,0.00015342,2]
[323028047,1713603053552,-531.68,0.00015342,2]
[323028048,1713603053562,-1277.947325,0.00015342,2]
[323028049,1713603053571,-1279.74,0.00015342,2]
[323028050,1713603053580,-4039.72,0.00015342,2]
[323028051,1713603053590,-4596.05,0.00015342,2]
[323028052,1713603053600,-500.0,0.00015342,2]
[323028053,1713603053612,-1358.81,0.00015342,2]
[323028054,1713603053623,-1797.0,0.00015342,2]
[323028055,1713603053633,-2116.85,0.00015342,2]
[323028056,1713603053642,-1277.947325,0.00015342,2]
[323028057,1713603053651,-1277.947325,0.00015342,2]
[323028058,1713603053662,-374.55986881,0.00015342,2]
[323028059,1713603053671,-500.0,0.00015342,2]
[323028060,1713603053681,-500.0,0.00015342,2]
[323028061,1713603053692,-136.61312933,0.00015342,2]
[323028062,1713603054277,-566.86687067,0.00015342,2]
[323028063,1713603054286,-257.99218223,0.00015342,2]
[323028064,1713603054296,-500.0,0.00015342,2]
[323028065,1713603054306,-500.0,0.00015342,2]
[323028066,1713603054315,-500.0,0.00015342,2]
[323028067,1713603054325,-526.74,0.00015342,2]
[323028068,1713603054335,-500.0,0.00015342,2]
[323028069,1713603054345,-2375.97,0.00015342,2]
[323028070,1713603054354,-500.0,0.00015342,2]
[323028071,1713603054364,-2218.96,0.00015342,2]
[323028072,1713603054373,-500.0,0.00015342,2]
[323028073,1713603054382,-500.0,0.00015342,2]
[323028074,1713603054392,-784.74,0.00015342,2]
[323028075,1713603054401,-500.0,0.00015342,2]
[323028076,1713603054411,-500.0,0.00015342,2]
[323028077,1713603054420,-500.0,0.00015342,2]
[323028078,1713603054429,-1014.71,0.00015342,2]
[323028079,1713603054439,-1630.33,0.00015342,2]
[323028080,1713603054448,-1247.38,0.00015342,2]
[323028081,1713603054458,-500.0,0.00015342,2]
[323028082,1713603054468,-500.0,0.00015342,2]
[323028083,1713603054477,-958.78,0.00015342,2]
[323028084,1713603054487,-500.0,0.00015342,2]
[323028085,1713603054497,-500.0,0.00015342,2]
[323028086,1713603054506,-2521.72,0.00015342,2]
[323028087,1713603054516,-1339.05,0.00015342,2]
[323028088,1713603054526,-500.0,0.00015342,2]
[323028089,1713603054536,-1407.0,0.00015342,2]
[323028090,1713603054546,-4691.46,0.00015342,2]
[323028091,1713603054555,-151.0,0.00015342,2]
[323028092,1713603054564,-3687.6,0.00015342,2]
[323028093,1713603054573,-151.0,0.00015342,2]
[323028094,1713603054583,-500.0,0.00015342,2]
[323028095,1713603054593,-534.55,0.00015342,2]
[323028096,1713603054602,-1491.73,0.00015342,2]
[323028097,1713603054612,-500.0,0.00015342,2]
[323028098,1713603054622,-1243.52,0.00015342,2]
[323028099,1713603054633,-500.0,0.00015342,2]
[323028100,1713603054643,-588.56,0.00015342,2]
[323028101,1713603054652,-500.0,0.00015342,2]
[323028102,1713603054663,-804.56,0.00015342,2]
[323028103,1713603054672,-151.0,0.00015342,2]
[323028104,1713603054682,-1401.23,0.00015342,2]
[323028105,1713603054691,-151.0,0.00015342,2]
[323028106,1713603054702,-500.0,0.00015342,2]
[323028107,1713603054711,-500.0,0.00015342,2]
[323028108,1713603054720,-2279.98,0.00015342,2]
[323028109,1713603055049,-168.991134,0.00015342,2]
[323028110,1713603055076,-2136.78,0.00015342,2]
[323028111,1713603055086,-168.991134,0.00015342,2]
[323028112,1713603055095,-500.0,0.00015342,2]
[323028113,1713603055104,-831.81,0.00015342,2]
[323028114,1713603055113,-1513.34,0.00015342,2]
[323028115,1713603055123,-500.0,0.00015342,2]
[323028116,1713603055132,-1560.15,0.00015342,2]
[323028117,1713603055141,-168.991134,0.00015342,2]
[323028118,1713603055151,-168.991134,0.00015342,2]
[323028119,1713603055160,-3010.04,0.00015342,2]
[323028120,1713603055169,-500.0,0.00015342,2]
[323028121,1713603055178,-1163.05,0.00015342,2]
[323028122,1713603055188,-786.99,0.00015342,2]
[323028123,1713603055197,-713.27,0.00015342,2]
[323028124,1713603055207,-500.0,0.00015342,2]
[323028125,1713603055216,-1545.93,0.00015342,2]
[323028126,1713603055225,-581.0,0.00015342,2]
[323028127,1713603055235,-500.0,0.00015342,2]
[323028128,1713603055244,-1158.67,0.00015342,2]
[323028129,1713603055255,-787.02,0.00015342,2]
[323028130,1713603055264,-1103.02,0.00015342,2]
[323028131,1713603055275,-281.10221208,0.00015342,2]
[323028132,1713603055285,-500.0,0.00015342,2]
[323028133,1713603055295,-500.0,0.00015342,2]
[323028134,1713603055304,-500.0,0.00015342,2]
[323028135,1713603055313,-631.31,0.00015342,2]
[323028136,1713603055322,-4670.67,0.00015342,2]
[323028137,1713603055332,-593.93,0.00015342,2]
[323028138,1713603055341,-1131.59,0.00015342,2]
[323028139,1713603055351,-1862.52,0.00015342,2]
[323028140,1713603055362,-500.0,0.00015342,2]
[323028141,1713603055371,-2183.12,0.00015342,2]
[323028142,1713603055380,-500.0,0.00015342,2]
[323028143,1713603055389,-500.0,0.00015342,2]
[323028144,1713603055399,-500.0,0.00015342,2]
[323028145,1713603055408,-767.7,0.00015342,2]
[323028146,1713603055417,-3118.09,0.00015342,2]
[323028147,1713603055426,-11644.69,0.00015342,2]
[323028148,1713603055435,-500.0,0.00015342,2]
[323028149,1713603055445,-1885.64,0.00015342,2]
[323028150,1713603055454,-500.0,0.00015342,2]
[323028151,1713603055463,-500.0,0.00015342,2]
[323028152,1713603055473,-500.0,0.00015342,2]
[323028153,1713603055482,-500.0,0.00015342,2]
[323028154,1713603055492,-505.11,0.00015342,2]
[323028155,1713603055501,-660.28,0.00015342,2]
[323028156,1713603055511,-3525.39,0.00015342,2]
[323028157,1713603055520,-500.0,0.00015342,2]
[323028158,1713603055530,-500.0,0.00015342,2]
[323028159,1713603055539,-903.89,0.00015342,2]
[323028160,1713603055549,-3085.38,0.00015342,2]
[323028161,1713603055559,-516.39,0.00015342,2]
[323028162,1713603055569,-500.0,0.00015342,2]
[323028163,1713603055578,-747.04,0.00015342,2]
[323028164,1713603055588,-500.0,0.00015342,2]
[323028165,1713603055597,-500.0,0.00015342,2]
[323028166,1713603055607,-3967.38,0.00015342,2]
[323028167,1713603055619,-500.0,0.00015342,2]
[323028168,1713603055629,-500.0,0.00015342,2]
[323028169,1713603055638,-500.0,0.00015342,2]
[323028170,1713603055647,-3663.8,0.00015342,2]
[323028171,1713603055657,-500.0,0.00015342,2]
[323028172,1713603055666,-500.0,0.00015342,2]
[323028173,1713603055676,-1353.66,0.00015342,2]
[323028174,1713603055685,-500.0,0.00015342,2]
[323028175,1713603055696,-522.24,0.00015342,2]
[323028176,1713603055705,-500.0,0.00015342,2]
[323028177,1713603055715,-1212.0,0.00015342,2]
[323028178,1713603055725,-2454.99,0.00015342,2]
[323028179,1713603055734,-1666.65,0.00015342,2]
[323028180,1713603055744,-1406.46,0.00015342,2]
[323028181,1713603055753,-592.11,0.00015342,2]
[323028182,1713603055762,-500.0,0.00015342,2]
[323028183,1713603055771,-5827.62,0.00015342,2]
[323028184,1713603055780,-500.0,0.00015342,2]
[323028185,1713603055789,-500.0,0.00015342,2]
[323028186,1713603055801,-633.0,0.00015342,2]
[323028187,1713603055811,-588.69,0.00015342,2]
[323028188,1713603055821,-151.0,0.00015342,2]
[323028189,1713603055830,-151.0,0.00015342,2]
[323028190,1713603055839,-551.87,0.00015342,2]
[323028191,1713603055848,-2964.79,0.00015342,2]
[323028192,1713603055857,-500.0,0.00015342,2]
[323028193,1713603055866,-500.0,0.00015342,2]
[323028194,1713603055875,-605.256023,0.00015342,2]
[323028195,1713603055884,-366.0,0.00015342,2]
[323028196,1713603055893,-461.0,0.00015359,2]
[323028197,1713603055902,-1393.0,0.00015359,2]
[323028198,1713603055911,-969.0,0.00015359,2]
[323028199,1713603055920,-2294.0,0.00015359,2]
[323028200,1713603055930,-1228.0,0.00015359,2]
[323028201,1713603055939,-541.0,0.00015359,2]
[323028202,1713603055948,-1107.076,0.00015359,2]
[323028203,1713603055958,-1951.0,0.00015359,2]
[323028204,1713603055967,-436.0,0.00015359,2]
[323028205,1713603055977,-609.0,0.00015359,2]
[323028206,1713603055986,-807.0,0.00015359,2]
[323028207,1713603055995,-257.0,0.00015359,2]
[323028208,1713603056004,-150.0,0.00015359,2]
[323028209,1713603056013,-1474.0,0.00015359,2]
[323028210,1713603056022,-3118.0,0.00015359,2]
[323028211,1713603056031,-2444.0,0.00015359,2]
[323028212,1713603056041,-399.0,0.00015359,2]
[323028213,1713603056050,-214.0,0.00015359,2]
[323028214,1713603056059,-1640.0,0.00015359,2]
[323028215,1713603056069,-1140.0,0.00015359,2]
[323028216,1713603056078,-443.0,0.00015359,2]
[323028217,1713603056087,-603.028,0.00015359,2]
[323028218,1713603056097,-2872.995,0.00015359,2]
[323028219,1713603056106,-4342.474,0.00015359,2]
[323028220,1713603056115,-234.043,0.00015359,2]
[323028221,1713603056125,-521.81,0.0001537,2]
[323028222,1713603056134,-968.988,0.00015416,2]
[323028223,1713603056143,-806.378432,0.0001547,2]
[323028224,1713603056153,-7355.20936289,0.00015495,2]
[323028225,1713603056161,-150.0,0.000155,2]
[323028226,1713603056171,-9875.0067945,0.00015516,2]
[323028227,1713603056180,-574.84238152,0.00015516,2]
[323028228,1713603056189,-211.55,0.00015544,2]
[323028229,1713603056198,-1717.12430949,0.00015577,2]
[323028230,1713603056207,-426.7849883,0.00015606,2]
[323028231,1713603056217,-241.92,0.00015608,2]
[323028232,1713603056226,-150.0,0.00015609,2]
[323028233,1713603056235,-1587.89610298,0.00015614,2]
[323028234,1713603056244,-193.11993615,0.00015614,2]
[323028235,1713603056254,-209.04676738,0.00015614,2]
[323028236,1713603056263,-267.10232057,0.00015615,2]
[323028237,1713603056272,-500.0,0.00015616,2]
[323028238,1713603056281,-500.0,0.00015616,2]
[323028239,1713603056290,-500.0,0.00015616,2]
[323028240,1713603056300,-500.0,0.00015616,2]
[323028241,1713603056309,-662.39,0.00015616,2]
[323028242,1713603056318,-500.0,0.00015616,2]
[323028243,1713603056327,-500.0,0.00015616,2]
[323028244,1713603056336,-500.0,0.00015616,2]
[323028245,1713603056346,-500.0,0.00015616,2]
[323028246,1713603056355,-500.0,0.00015616,2]
[323028247,1713603056364,-500.0,0.00015616,2]
[323028248,1713603056373,-524.7,0.00015616,2]
[323028249,1713603056382,-500.0,0.00015616,2]
[323028250,1713603056391,-500.0,0.00015616,2]
[323028251,1713603056400,-500.0,0.00015616,2]
[323028252,1713603056409,-500.0,0.00015616,2]
[323028253,1713603056418,-761.02,0.00015616,2]
[323028254,1713603056428,-557.19,0.00015616,2]
[323028255,1713603056437,-698.88,0.00015616,2]
[323028256,1713603056446,-500.0,0.00015616,2]
[323028257,1713603056455,-500.0,0.00015616,2]
[323028258,1713603056465,-661.13,0.00015616,2]
[323028259,1713603056474,-500.0,0.00015616,2]
[323028260,1713603056484,-500.0,0.00015616,2]
[323028261,1713603056493,-500.0,0.00015616,2]
[323028262,1713603056502,-500.0,0.00015616,2]
[323028263,1713603056512,-500.0,0.00015616,2]
[323028264,1713603056521,-529.58,0.00015616,2]
[323028265,1713603056532,-500.0,0.00015616,2]
[323028266,1713603056541,-500.0,0.00015616,2]
[323028267,1713603056551,-500.0,0.00015616,2]
[323028268,1713603056561,-500.0,0.00015616,2]
[323028269,1713603056571,-500.0,0.00015616,2]
[323028270,1713603056580,-500.0,0.00015616,2]
[323028271,1713603056590,-500.0,0.00015616,2]